Workbook

Sheet D 单位工程最高投标限价汇总表
A2: 单位工程最高投标限价汇总表
A3: 工程名称：水电新村17间门面房用水管道改造分户施工 | C3: 标段：水电新村17间门面房用水管道改造分户施工 | E3: 第 1 页 共 1 页
A4: 序号 | B4: 汇总内容 | D4: 金额:(元) | F4: 其中：材料、设备暂估价（元）
A5: 1 | B5: 分部分项工程费 | D5: 84593.48 | G5: 99415.15 | H5: =G5-D5 -> 14821.67
A6: 1.1 | B6: 定额人工费 | D6: 16834.31 | G6: 18910.29 | H6: =G6-D6 -> 2075.98
A7: 1.2 | B7: 定额机械费 | D7: 6585.6 | G7: 6601.98 | H7: 16.38
A8: 1.3 | B8: 综合费 | D8: 5999.92 | G8: 6536.08 | H8: 536.16
A9: 2 | B9: 措施项目费 | D9: 1294.76 | G9: 1439.16 | H9: 144.4
A10: 3 | B10: 不可竞争费 | D10: 4910.78 | G10: 5458.34 | H10: 547.56
A11: 3.1 | B11: 安全文明施工费 | D11: 4910.78 | G11: 5458.34 | H11: 547.56
A12: 3.2 | B12: 环境保护税 | H12: 0
A13: 4 | B13: 其他项目费 | D13: 4229.67 | G13: 4970.76 | H13: 741.09
A14: 4.1 | B14: 暂列金额 | D14: 4229.67 | G14: 4970.76 | H14: 741.09
A15: 4.2 | B15: 专业工程暂估价 | H15: 0
A16: 4.3 | B16: 计日工 | H16: 0
A17: 4.4 | B17: 总承包服务费 | H17: 0
A18: 5 | B18: 税金 | D18: 8552.58 | G18: 10015.51 | H18: 1462.93
A28: 工程造价=1+2+3+4+5 | D28: 103,581.27 | F28: 0 | G28: 121,298.92 | H28: =G28-D28 -> 17717.65
A29: 说明：本表适用于单位工程最高投标限价或投标报价的汇总，如无单位工程划分，单项工程也使用本表汇总
A30: 安徽省建设工程造价计价软件测评合格编号：2018-JS-12

Sheet E.1 分部分项工程量清单与计价表
A2: 分部分项工程量清单计价表
A3: 工程名称：水电新村17间门面房用水管道改造分户施工 | E3: 标段：水电新村17间门面房用水管道改造分户施工 | J3: 第 1 页 共 5 页
A4: 序号 | B4: 项目编码 | C4: 项目名称 | D4: 项目特征描述 | F4: 计量单位 | G4: 工程量 | H4: 金额（元）
H5: 综合单价 | I5: 合价 | K5: 其中
K6: 定额人工费 | L6: 定额机械费 | M6: 暂估价
A7: 1 | B7: 031001011001 | C7: 管道碰头 | D7: 1.名称：不停水开孔 2.球墨铸铁管开孔DN150*150*50 3.未尽事宜详见图纸、招标文件、答疑、图集、政府相关文件及规范等其他资料 | F7: 处 | G7: 2 | H7: 1694.45 | I7: 3388.9 | K7: 758.52 | L7: 885.18
A8: 2 | B8: 031001011002 | C8: 管道碰头 | D8: 1.名称：不停水开孔 2.球墨铸铁管开孔DN100*100*50 3.未尽事宜详见图纸、招标文件、答疑、图集、政府相关文件及规范等其他资料 | F8: 处 | G8: 1 | H8: 1271.77 | I8: 1271.77 | K8: 256.62 | L8: 354.66
A9: 3 | B9: 031003001001 | C9: 螺纹阀门 | D9: 1.名称：梯后免维护阀门 2.型号：DN50 3.未尽事宜详见图纸、招标文件、答疑、图集、政府相关文件及规范等其他资料 | F9: 个 | G9: 3 | H9: 329.26 | I9: 987.78 | K9: 116.76 | L9: 9.66
A10: 4 | B10: 040504001001 | C10: 砌筑检查井 | D10: 1.名称：梯口阀门井 2.型号：400*400 3.含井圈井盖 4.未尽事宜详见图纸、招标文件、答疑、图集、政府相关文件及规范等其他资料 | F10: 座 | G10: 3 | H10: 1160.85 | I10: 3482.55 | K10: 647.88 | L10: 15.51
A11: 5 | B11: 031001007001 | C11: 复合管 | D11: 1.安装部位:室外 2.介质:给水 3.规格、压力等级:衬塑复合管DN50 4.连接形式:丝扣连接 5.压力试验及消毒、吹洗设计要求 6.警示带形式 7.管件制安 8.未尽事宜详见图纸、招标文件、答疑、图集、政府相关文件及规范等其他资料 | F11: m | G11: 99 | H11: 76.43 | I11: 7566.57 | K11: 1831.5 | L11: 127.71
A12: 安徽省建设工程造价计价软件测评合格编号：2018-JS-12
A14: 分部分项工程量清单计价表
A15: 工程名称：水电新村17间门面房用水管道改造分户施工 | E15: 标段：水电新村17间门面房用水管道改造分户施工 | J15: 第 2 页 共 5 页
A16: 序号 | B16: 项目编码 | C16: 项目名称 | D16: 项目特征描述 | F16: 计量单位 | G16: 工程量 | H16: 金额（元）
H17: 综合单价 | I17: 合价 | K17: 其中
K18: 定额人工费 | L18: 定额机械费 | M18: 暂估价
A19: 6 | B19: 031001007002 | C19: 复合管 | D19: 1.安装部位:室外 2.介质:给水 3.规格、压力等级:衬塑复合管DN15 4.连接形式:丝扣连接 5.压力试验及消毒、吹洗设计要求 6.警示带形式 7.管件制安 8.未尽事宜详见图纸、招标文件、答疑、图集、政府相关文件及规范等其他资料 | F19: m | G19: 102 | H19: 32.73 | I19: 3338.46 | K19: 1265.82 | L19: 30.6
A20: 7 | B20: 031001006001 | C20: 塑料管 | D20: 1.安装部位:室外 2.介质:给水 3.规格、压力等级:PE给水管dn20 4.连接形式:丝扣连接 5.压力试验及消毒、吹洗设计要求 6.警示带形式 7.管件制安 8.未尽事宜详见图纸、招标文件、答疑、图集、政府相关文件及规范等其他资料 | F20: m | G20: 170 | H20: 16.52 | I20: 2808.4 | K20: 1283.5 | L20: 3.4
A21: 8 | B21: 031003001002 | C21: 螺纹阀门 | D21: 1.名称：磁控阀 2.型号：DN15 3.未尽事宜详见图纸、招标文件、答疑、图集、政府相关文件及规范等其他资料 | F21: 个 | G21: 17 | H21: 45.63 | I21: 775.71 | K21: 123.76 | L21: 2.55
A22: 9 | B22: 031003001003 | C22: 螺纹阀门 | D22: 1.名称：铜闸阀 2.型号：DN15 3.未尽事宜详见图纸、招标文件、答疑、图集、政府相关文件及规范等其他资料 | F22: 个 | G22: 17 | H22: 34.29 | I22: 582.93 | K22: 109.48 | L22: 18.53
A23: 安徽省建设工程造价计价软件测评合格编号：2018-JS-12
A25: 分部分项工程量清单计价表
A26: 工程名称：水电新村17间门面房用水管道改造分户施工 | E26: 标段：水电新村17间门面房用水管道改造分户施工 | J26: 第 3 页 共 5 页
A27: 序号 | B27: 项目编码 | C27: 项目名称 | D27: 项目特征描述 | F27: 计量单位 | G27: 工程量 | H27: 金额（元）
H28: 综合单价 | I28: 合价 | K28: 其中
K29: 定额人工费 | L29: 定额机械费 | M29: 暂估价
A30: 10 | B30: 031003013001 | C30: 水表 | D30: 1.名称：远传智能水表（含铜接头） 2.型号：DN15 3.未尽事宜详见图纸、招标文件、答疑、图集、政府相关文件及规范等其他资料 | F30: 个 | G30: 17 | H30: 234.13 | I30: 3980.21 | K30: 209.44 | L30: 2.21
A31: 11 | B31: ZB010101001001 | C31: 水表保温套 | D31: 1.名称：水表保温套 2.型号：DN15 3.未尽事宜详见图纸、招标文件、答疑、图集、政府相关文件及规范等其他资料 | F31: 只 | G31: 17 | H31: 20 | I31: 340
A32: 12 | B32: ZB010101002001 | C32: 保温套管 | D32: 1.名称：保温套管 2.型号：DN25 3.配套管卡 4.未尽事宜详见图纸、招标文件、答疑、图集、政府相关文件及规范等其他资料 | F32: m | G32: 170 | H32: 11.95 | I32: 2031.5 | K32: 766.7 | L32: 3.4
A33: 13 | B33: 031001006002 | C33: 塑料管 | D33: 1.名称：PVC排水管（表后管道套管） 2.型号：DN50 3.配套管卡 4.未尽事宜详见图纸、招标文件、答疑、图集、政府相关文件及规范等其他资料 | F33: m | G33: 85 | H33: 23.36 | I33: 1985.6 | K33: 860.2
A34: 14 | B34: 040504001002 | C34: 砌筑检查井 | D34: 1.名称：砖砌水表井 2.型号：600*400 3.含铸铁井圈井盖 4.未尽事宜详见图纸、招标文件、答疑、图集、政府相关文件及规范等其他资料 | F34: 座 | G34: 17 | H34: 967.37 | I34: 16445.29 | K34: 3059.49 | L34: 73.27
A35: 安徽省建设工程造价计价软件测评合格编号：2018-JS-12
A37: 分部分项工程量清单计价表
A38: 工程名称：水电新村17间门面房用水管道改造分户施工 | E38: 标段：水电新村17间门面房用水管道改造分户施工 | J38: 第 4 页 共 5 页
A39: 序号 | B39: 项目编码 | C39: 项目名称 | D39: 项目特征描述 | F39: 计量单位 | G39: 工程量 | H39: 金额（元）
H40: 综合单价 | I40: 合价 | K40: 其中
K41: 定额人工费 | L41: 定额机械费 | M41: 暂估价
A42: 15 | B42: ZB010101002003 | C42: 路面破除 | D42: 1.名称：沥青水泥路面破除 2.具体要求接合现场 3.锯缝机锯缝，含面层及基层破除 4.未尽事宜详见图纸、招标文件、答疑、图集、政府相关文件及规范等其他资料 | F42: m | G42: 96 | H42: 18.06 | I42: 1733.76 | K42: 652.8 | L42: 653.76
A43: 16 | B43: ZB010101002004 | C43: 路面恢复 | D43: 1.名称：沥青水泥路面恢复 2.具体要求接合现场，材质及厚度不低于原路面 3.含面层及基层 4.未尽事宜详见图纸、招标文件、答疑、图集、政府相关文件及规范等其他资料 | F43: m | G43: 96 | H43: 73.69 | I43: 7074.24 | K43: 631.68 | L43: 80.64
A44: 17 | B44: 040101002001 | C44: 挖沟槽土方 | D44: 1.名称：沟槽土方开挖 2.未尽事宜详见图纸、招标文件、答疑、图集、政府相关文件及规范等其他资料 | F44: m³ | G44: 108.36 | H44: 4.71 | I44: 510.38 | K44: 42.26 | L44: 347.84
A45: 18 | B45: 040103001001 | C45: 回填方 | D45: 1.名称：沟槽土方回填 2.未尽事宜详见图纸、招标文件、答疑、图集、政府相关文件及规范等其他资料 | F45: m³ | G45: 54.69 | H45: 15.72 | I45: 859.73 | K45: 505.34 | L45: 114.85
A46: 19 | B46: 040103002001 | C46: 余方弃置 | D46: 1.名称：余方弃置 2.运距接合现场自行考虑 3.未尽事宜详见图纸、招标文件、答疑、图集、政府相关文件及规范等其他资料 | F46: m³ | G46: 53.66 | H46: 17.64 | I46: 946.56 | K46: 15.02 | L46: 708.85
A47: 20 | B47: WB040501021001 | C47: 管道垫层 | D47: 1.名称：管道垫层 2.材质：中粗砂 3.未尽事宜详见图纸、招标文件、答疑、图集、政府相关文件及规范等其他资料 | F47: m³ | G47: 15.33 | H47: 288.17 | I47: 4417.65 | K47: 468.02 | L47: 32.19
A48: 安徽省建设工程造价计价软件测评合格编号：2018-JS-12
A50: 分部分项工程量清单计价表
A51: 工程名称：水电新村17间门面房用水管道改造分户施工 | E51: 标段：水电新村17间门面房用水管道改造分户施工 | J51: 第 5 页 共 5 页
A52: 序号 | B52: 项目编码 | C52: 项目名称 | D52: 项目特征描述 | F52: 计量单位 | G52: 工程量 | H52: 金额（元）
H53: 综合单价 | I53: 合价 | K53: 其中
K54: 定额人工费 | L54: 定额机械费 | M54: 暂估价
A55: 21 | B55: WB040501021002 | C55: 砂回填 | D55: 1.名称：砂回填 2.材质：中粗砂 3.回填至管顶上方20cm 4.未尽事宜详见图纸、招标文件、答疑、图集、政府相关文件及规范等其他资料 | F55: m³ | G55: 38.33 | H55: 288.17 | I55: 11045.56 | K55: 1170.21 | L55: 80.49
A56: 22 | B56: 040503001001 | C56: 管道支墩（挡墩） | D56: 1.名称：管道支墩（三通弯头水表等支墩） 2.材质：见图 3.未尽事宜详见图纸、招标文件、答疑、图集、政府相关文件及规范等其他资料 | F56: m³ | G56: 1.5 | H56: 773.72 | I56: 1160.58 | K56: 379.31 | L56: 65.28
A57: 23 | B57: ZB010101003001 | C57: 垃圾外运 | D57: 1.名称：本工程破除所产生的垃圾外运 2.运距接合现场自行考虑 3.未尽事宜详见图纸、招标文件、答疑、图集、政府相关文件及规范等其他资料 | F57: 项 | G57: 1 | H57: 1000 | I57: 1000
A58: 24 | B58: ZB010101003002 | C58: 水损 | D58: 1.名称：不停水开孔产生的水损费 2.未尽事宜详见图纸、招标文件、答疑、图集、政府相关文件及规范等其他资料 | F58: 项 | G58: 1 | H58: 600 | I58: 600
A59: 25 | B59: ZB010101003003 | C59: 大型机械进出场及安拆 | D59: 1.名称：大型机械进出场及安拆 2.机械类型：接合现场自行考虑 3.包含但不限于机械进出场费用、安装、拆除及基础等所有费用 4.未尽事宜详见图纸、招标文件、答疑、图集、政府相关文件及规范等其他资料 | F59: 项 | G59: 1 | H59: 6259.35 | I59: 6259.35 | K59: 1680 | L59: 2975.02
A63: 安徽省建设工程造价计价软件测评合格编号：2018-JS-12

Sheet E.1 分部分项工程量清单与计价表 (校核)
A2: 分部分项工程量清单计价表
A3: 工程名称：水电新村17间门面房用水管道改造分户施工 | E3: 标段：水电新村17间门面房用水管道改造分户施工 | J3: 第 1 页 共 5 页
A4: 序号 | B4: 项目编码 | C4: 项目名称 | D4: 项目特征描述 | F4: 计量单位 | G4: 工程量 | H4: 金额（元）
H5: 综合单价 | I5: 合价 | K5: 其中
K6: 定额人工费 | L6: 定额机械费 | M6: 暂估价
A7: 1 | B7: 031001011001 | C7: 管道碰头 | D7: 1.名称：不停水开孔 2.球墨铸铁管开孔DN150*150*50 3.未尽事宜详见图纸、招标文件、答疑、图集、政府相关文件及规范等其他资料 | F7: 处 | G7: 2 | H7: 1694.45 | I7: 3388.9 | K7: 758.52 | L7: 885.18 | N7: 4751.32 | O7: =N7-I7 -> 1362.42
A8: 2 | B8: 031001011002 | C8: 管道碰头 | D8: 1.名称：不停水开孔 2.球墨铸铁管开孔DN100*100*50 3.未尽事宜详见图纸、招标文件、答疑、图集、政府相关文件及规范等其他资料 | F8: 处 | G8: 1 | H8: 1271.77 | I8: 1271.77 | K8: 256.62 | L8: 354.66 | N8: 1767.22 | O8: =N8-I8 -> 495.45
A9: 3 | B9: 031003001001 | C9: 螺纹阀门 | D9: 1.名称：梯后免维护阀门 2.型号：DN50 3.未尽事宜详见图纸、招标文件、答疑、图集、政府相关文件及规范等其他资料 | F9: 个 | G9: 3 | H9: 329.26 | I9: 987.78 | K9: 116.76 | L9: 9.66 | N9: 988.62 | O9: 0.84
A10: 4 | B10: 040504001001 | C10: 砌筑检查井 | D10: 1.名称：梯口阀门井 2.型号：400*400 3.含井圈井盖 4.未尽事宜详见图纸、招标文件、答疑、图集、政府相关文件及规范等其他资料 | F10: 座 | G10: 3 | H10: 1160.85 | I10: 3482.55 | K10: 647.88 | L10: 15.51 | N10: 3523.14 | O10: 40.59
A11: 5 | B11: 031001007001 | C11: 复合管 | D11: 1.安装部位:室外 2.介质:给水 3.规格、压力等级:衬塑复合管DN50 4.连接形式:丝扣连接 5.压力试验及消毒、吹洗设计要求 6.警示带形式 7.管件制安 8.未尽事宜详见图纸、招标文件、答疑、图集、政府相关文件及规范等其他资料 | F11: m | G11: 99 | H11: 76.43 | I11: 7566.57 | K11: 1831.5 | L11: 127.71 | N11: 7643.79 | O11: 77.22
A12: 安徽省建设工程造价计价软件测评合格编号：2018-JS-12
A14: 分部分项工程量清单计价表
A15: 工程名称：水电新村17间门面房用水管道改造分户施工 | E15: 标段：水电新村17间门面房用水管道改造分户施工 | J15: 第 2 页 共 5 页
A16: 序号 | B16: 项目编码 | C16: 项目名称 | D16: 项目特征描述 | F16: 计量单位 | G16: 工程量 | H16: 金额（元）
H17: 综合单价 | I17: 合价 | K17: 其中
K18: 定额人工费 | L18: 定额机械费 | M18: 暂估价
A19: 6 | B19: 031001007002 | C19: 复合管 | D19: 1.安装部位:室外 2.介质:给水 3.规格、压力等级:衬塑复合管DN15 4.连接形式:丝扣连接 5.压力试验及消毒、吹洗设计要求 6.警示带形式 7.管件制安 8.未尽事宜详见图纸、招标文件、答疑、图集、政府相关文件及规范等其他资料 | F19: m | G19: 102 | H19: 32.73 | I19: 3338.46 | K19: 1265.82 | L19: 30.6 | N19: 3400.68 | O19: =N19-I19 -> 62.22
A20: 7 | B20: 031001006001 | C20: 塑料管 | D20: 1.安装部位:室外 2.介质:给水 3.规格、压力等级:PE给水管dn20 4.连接形式:丝扣连接 5.压力试验及消毒、吹洗设计要求 6.警示带形式 7.管件制安 8.未尽事宜详见图纸、招标文件、答疑、图集、政府相关文件及规范等其他资料 | F20: m | G20: 170 | H20: 16.52 | I20: 2808.4 | K20: 1283.5 | L20: 3.4 | N20: 2818.6 | O20: 10.2
A21: 8 | B21: 031003001002 | C21: 螺纹阀门 | D21: 1.名称：磁控阀 2.型号：DN15 3.未尽事宜详见图纸、招标文件、答疑、图集、政府相关文件及规范等其他资料 | F21: 个 | G21: 17 | H21: 45.63 | I21: 775.71 | K21: 123.76 | L21: 2.55 | N21: 1116.56 | O21: 340.85
A22: 9 | B22: 031003001003 | C22: 螺纹阀门 | D22: 1.名称：铜闸阀 2.型号：DN15 3.未尽事宜详见图纸、招标文件、答疑、图集、政府相关文件及规范等其他资料 | F22: 个 | G22: 17 | H22: 34.29 | I22: 582.93 | K22: 109.48 | L22: 18.53 | N22: 583.78 | O22: =N22-I22 -> 0.85
A23: 安徽省建设工程造价计价软件测评合格编号：2018-JS-12
A25: 分部分项工程量清单计价表
A26: 工程名称：水电新村17间门面房用水管道改造分户施工 | E26: 标段：水电新村17间门面房用水管道改造分户施工 | J26: 第 3 页 共 5 页
A27: 序号 | B27: 项目编码 | C27: 项目名称 | D27: 项目特征描述 | F27: 计量单位 | G27: 工程量 | H27: 金额（元）
H28: 综合单价 | I28: 合价 | K28: 其中
K29: 定额人工费 | L29: 定额机械费 | M29: 暂估价
A30: 10 | B30: 031003013001 | C30: 水表 | D30: 1.名称：远传智能水表（含铜接头） 2.型号：DN15 3.未尽事宜详见图纸、招标文件、答疑、图集、政府相关文件及规范等其他资料 | F30: 个 | G30: 17 | H30: 234.13 | I30: 3980.21 | K30: 209.44 | L30: 2.21 | N30: 3981.74 | O30: =N30-I30 -> 1.53
A31: 11 | B31: ZB010101001001 | C31: 水表保温套 | D31: 1.名称：水表保温套 2.型号：DN15 3.未尽事宜详见图纸、招标文件、答疑、图集、政府相关文件及规范等其他资料 | F31: 只 | G31: 17 | H31: 20 | I31: 340 | N31: 340 | O31: 0
A32: 12 | B32: ZB010101002001 | C32: 保温套管 | D32: 1.名称：保温套管 2.型号：DN25 3.配套管卡 4.未尽事宜详见图纸、招标文件、答疑、图集、政府相关文件及规范等其他资料 | F32: m | G32: 170 | H32: 11.95 | I32: 2031.5 | K32: 766.7 | L32: 3.4 | N32: 2036.6 | O32: 5.1
A33: 13 | B33: 031001006002 | C33: 塑料管 | D33: 1.名称：PVC排水管（表后管道套管） 2.型号：DN50 3.配套管卡 4.未尽事宜详见图纸、招标文件、答疑、图集、政府相关文件及规范等其他资料 | F33: m | G33: 85 | H33: 23.36 | I33: 1985.6 | K33: 860.2 | N33: 1990.7 | O33: 5.1
A34: 14 | B34: 040504001002 | C34: 砌筑检查井 | D34: 1.名称：砖砌水表井 2.型号：600*400 3.含铸铁井圈井盖 4.未尽事宜详见图纸、招标文件、答疑、图集、政府相关文件及规范等其他资料 | F34: 座 | G34: 17 | H34: 967.37 | I34: 16445.29 | K34: 3059.49 | L34: 73.27 | N34: 23291.53 | O34: =N34-I34 -> 6846.24
A35: 安徽省建设工程造价计价软件测评合格编号：2018-JS-12
A37: 分部分项工程量清单计价表
A38: 工程名称：水电新村17间门面房用水管道改造分户施工 | E38: 标段：水电新村17间门面房用水管道改造分户施工 | J38: 第 4 页 共 5 页
A39: 序号 | B39: 项目编码 | C39: 项目名称 | D39: 项目特征描述 | F39: 计量单位 | G39: 工程量 | H39: 金额（元）
H40: 综合单价 | I40: 合价 | K40: 其中
K41: 定额人工费 | L41: 定额机械费 | M41: 暂估价
A42: 15 | B42: ZB010101002003 | C42: 路面破除 | D42: 1.名称：沥青水泥路面破除 2.具体要求接合现场 3.锯缝机锯缝，含面层及基层破除 4.未尽事宜详见图纸、招标文件、答疑、图集、政府相关文件及规范等其他资料 | F42: m | G42: 96 | H42: 18.06 | I42: 1733.76 | K42: 652.8 | L42: 653.76 | N42: 2157.12 | O42: =N42-I42 -> 423.36
A43: 16 | B43: ZB010101002004 | C43: 路面恢复 | D43: 1.名称：沥青水泥路面恢复 2.具体要求接合现场，材质及厚度不低于原路面 3.含面层及基层 4.未尽事宜详见图纸、招标文件、答疑、图集、政府相关文件及规范等其他资料 | F43: m | G43: 96 | H43: 73.69 | I43: 7074.24 | K43: 631.68 | L43: 80.64 | N43: 7554.24 | O43: 480
A44: 17 | B44: 040101002001 | C44: 挖沟槽土方 | D44: 1.名称：沟槽土方开挖 2.未尽事宜详见图纸、招标文件、答疑、图集、政府相关文件及规范等其他资料 | F44: m³ | G44: 108.36 | H44: 4.71 | I44: 510.38 | K44: 42.26 | L44: 347.84 | N44: 656.17 | O44: 145.79
A45: 18 | B45: 040103001001 | C45: 回填方 | D45: 1.名称：沟槽土方回填 2.未尽事宜详见图纸、招标文件、答疑、图集、政府相关文件及规范等其他资料 | F45: m³ | G45: 54.69 | H45: 15.72 | I45: 859.73 | K45: 505.34 | L45: 114.85 | N45: 1347.83 | O45: 488.1
A46: 19 | B46: 040103002001 | C46: 余方弃置 | D46: 1.名称：余方弃置 2.运距接合现场自行考虑 3.未尽事宜详见图纸、招标文件、答疑、图集、政府相关文件及规范等其他资料 | F46: m³ | G46: 53.66 | H46: 17.64 | I46: 946.56 | K46: 15.02 | L46: 708.85 | N46: 948.17 | O46: 1.61
A47: 20 | B47: WB040501021001 | C47: 管道垫层 | D47: 1.名称：管道垫层 2.材质：中粗砂 3.未尽事宜详见图纸、招标文件、答疑、图集、政府相关文件及规范等其他资料 | F47: m³ | G47: 15.33 | H47: 288.17 | I47: 4417.65 | K47: 468.02 | L47: 32.19 | N47: 5267.39 | O47: =N47-I47 -> 849.74
A48: 安徽省建设工程造价计价软件测评合格编号：2018-JS-12
A50: 分部分项工程量清单计价表
A51: 工程名称：水电新村17间门面房用水管道改造分户施工 | E51: 标段：水电新村17间门面房用水管道改造分户施工 | J51: 第 5 页 共 5 页
A52: 序号 | B52: 项目编码 | C52: 项目名称 | D52: 项目特征描述 | F52: 计量单位 | G52: 工程量 | H52: 金额（元）
H53: 综合单价 | I53: 合价 | K53: 其中
K54: 定额人工费 | L54: 定额机械费 | M54: 暂估价
A55: 21 | B55: WB040501021002 | C55: 砂回填 | D55: 1.名称：砂回填 2.材质：中粗砂 3.回填至管顶上方20cm 4.未尽事宜详见图纸、招标文件、答疑、图集、政府相关文件及规范等其他资料 | F55: m³ | G55: 38.33 | H55: 288.17 | I55: 11045.56 | K55: 1170.21 | L55: 80.49 | N55: 13170.19 | O55: =N55-I55 -> 2124.63
A56: 22 | B56: 040503001001 | C56: 管道支墩（挡墩） | D56: 1.名称：管道支墩（三通弯头水表等支墩） 2.材质：见图 3.未尽事宜详见图纸、招标文件、答疑、图集、政府相关文件及规范等其他资料 | F56: m³ | G56: 1.5 | H56: 773.72 | I56: 1160.58 | K56: 379.31 | L56: 65.28 | N56: 1205.55 | O56: 44.97
A57: 23 | B57: ZB010101003001 | C57: 垃圾外运 | D57: 1.名称：本工程破除所产生的垃圾外运 2.运距接合现场自行考虑 3.未尽事宜详见图纸、招标文件、答疑、图集、政府相关文件及规范等其他资料 | F57: 项 | G57: 1 | H57: 1000 | I57: 1000 | N57: 2000 | O57: 1000
A58: 24 | B58: ZB010101003002 | C58: 水损 | D58: 1.名称：不停水开孔产生的水损费 2.未尽事宜详见图纸、招标文件、答疑、图集、政府相关文件及规范等其他资料 | F58: 项 | G58: 1 | H58: 600 | I58: 600 | N58: 600 | O58: 0
A59: 25 | B59: ZB010101003003 | C59: 大型机械进出场及安拆 | D59: 1.名称：大型机械进出场及安拆 2.机械类型：接合现场自行考虑 3.包含但不限于机械进出场费用、安装、拆除及基础等所有费用 4.未尽事宜详见图纸、招标文件、答疑、图集、政府相关文件及规范等其他资料 | F59: 项 | G59: 1 | H59: 6259.35 | I59: 6259.35 | K59: 1680 | L59: 2975.02 | N59: 6274.21 | O59: =N59-I59 -> 14.86
A63: 安徽省建设工程造价计价软件测评合格编号：2018-JS-12
